[Event "Titled Tuesday Blitz March 14 Late 2023"]
[White "Vega Gutierrez, Sabrina"]
[Black "lisjakzlatko1"]
[WhiteFideId "2219026"]
[WhiteElo "2209"]
[BlackElo "2153"]
[Result "1-0"]
[Round "05"]
[TimeControl "180+2"]
[Date "2023.03.14"]
[WhiteClock "0:00:34"]
[BlackClock "0:00:04"]

1. e4 {[%clk 0:03:00]}  d6 {[%clk 0:02:59]} 2. d4 {[%clk 0:03:00]}  Nf6 {[%clk 0:02:59]} 3. Nc3 {[%clk 0:03:00]}  c6 {[%clk 0:02:59]} 4. Nf3 {[%clk 0:02:56]}  Bg4 {[%clk 0:02:57]} 5. Be3 {[%clk 0:02:52]}  Qb6 {[%clk 0:02:49]} 6. Qd2 {[%clk 0:02:51]}  Nbd7 {[%clk 0:02:28]} 7. O-O-O {[%clk 0:02:50]}  Qc7 {[%clk 0:02:08]} 8. h3 {[%clk 0:02:43]}  Bh5 {[%clk 0:02:01]} 9. g4 {[%clk 0:02:33]}  Bg6 {[%clk 0:02:02]} 10. Bd3 {[%clk 0:02:33]}  e5 {[%clk 0:01:55]} 11. Nh4 {[%clk 0:02:24]}  Be7 {[%clk 0:01:48]} 12. Nf5 {[%clk 0:02:11]}  Bxf5 {[%clk 0:01:44]} 13. exf5 {[%clk 0:02:12]}  h6 {[%clk 0:01:35]} 14. Be2 {[%clk 0:02:04]}  b5 {[%clk 0:01:26]} 15. h4 {[%clk 0:01:57]}  b4 {[%clk 0:01:21]} 16. Na4 {[%clk 0:01:57]}  Qa5 {[%clk 0:01:21]} 17. b3 {[%clk 0:01:57]}  Ne4 {[%clk 0:01:12]} 18. Qd3 {[%clk 0:01:55]}  Nc3 {[%clk 0:01:09]} 19. Nxc3 {[%clk 0:01:53]}  bxc3 {[%clk 0:00:46]} 20. Kb1 {[%clk 0:01:54]}  O-O-O {[%clk 0:00:37]} 21. Qc4 {[%clk 0:01:46]}  Kb7 {[%clk 0:00:18]} 22. Qxf7 {[%clk 0:01:42]}  Rhe8 {[%clk 0:00:16]} 23. Qxg7 {[%clk 0:01:39]}  Bf6 {[%clk 0:00:14]} 24. Qxh6 {[%clk 0:01:35]}  exd4 {[%clk 0:00:14]} 25. Bxd4 {[%clk 0:01:21]}  Bxd4 {[%clk 0:00:12]} 26. Rxd4 {[%clk 0:01:21]}  Rxe2 {[%clk 0:00:12]} 27. Rxd6 {[%clk 0:01:13]}  Rd2 {[%clk 0:00:12]} 28. Rxd2 {[%clk 0:00:39]}  Qa3 {[%clk 0:00:11]} 29. Rxd7+ {[%clk 0:00:38]}  Rxd7 {[%clk 0:00:10]} 30. Qc1 {[%clk 0:00:38]}  Qa6 {[%clk 0:00:11]} 31. f6 {[%clk 0:00:37]}  c5 {[%clk 0:00:04]} 32. g5 {[%clk 0:00:36]}  c4 {[%clk 0:00:04]} 33. Rd1 {[%clk 0:00:34]} 1-0


[Site "https://www.chess.com"]

[Event "Titled Tuesday Blitz March 14 Late 2023"]
[White "Curtis, John"]
[Black "rikchessmx"]
[WhiteFideId "3200256"]
[WhiteElo "2203"]
[BlackElo "2335"]
[Result "1-0"]
[Round "05"]
[TimeControl "180+2"]
[Date "2023.03.14"]
[WhiteClock "0:00:17"]
[BlackClock "0:01:03"]

1. d4 {[%clk 0:03:00]}  Nf6 {[%clk 0:02:59]} 2. Nf3 {[%clk 0:03:00]}  e6 {[%clk 0:02:59]} 3. Bg5 {[%clk 0:02:57]}  c5 {[%clk 0:02:58]} 4. Bxf6 {[%clk 0:02:55]}  Qxf6 {[%clk 0:02:58]} 5. e3 {[%clk 0:02:53]}  Nc6 {[%clk 0:02:57]} 6. c3 {[%clk 0:02:53]}  d5 {[%clk 0:02:57]} 7. Nbd2 {[%clk 0:02:45]}  Bd6 {[%clk 0:02:57]} 8. Bd3 {[%clk 0:02:34]}  O-O {[%clk 0:02:57]} 9. dxc5 {[%clk 0:02:34]}  Bxc5 {[%clk 0:02:55]} 10. O-O {[%clk 0:02:34]}  e5 {[%clk 0:02:55]} 11. e4 {[%clk 0:02:33]}  d4 {[%clk 0:02:55]} 12. Nb3 {[%clk 0:02:31]}  Bb6 {[%clk 0:02:55]} 13. cxd4 {[%clk 0:02:30]}  exd4 {[%clk 0:02:55]} 14. h3 {[%clk 0:02:28]}  Rd8 {[%clk 0:02:53]} 15. a3 {[%clk 0:02:26]}  Be6 {[%clk 0:02:53]} 16. Nbd2 {[%clk 0:02:23]}  Rac8 {[%clk 0:02:49]} 17. Qe2 {[%clk 0:02:09]}  Qf4 {[%clk 0:02:42]} 18. Rac1 {[%clk 0:01:53]}  Ne7 {[%clk 0:02:40]} 19. Rxc8 {[%clk 0:01:38]}  Bxc8 {[%clk 0:02:38]} 20. Nc4 {[%clk 0:01:33]}  Bc7 {[%clk 0:02:38]} 21. Qd2 {[%clk 0:01:24]}  Ng6 {[%clk 0:02:32]} 22. b4 {[%clk 0:01:13]}  Qf6 {[%clk 0:02:27]} 23. Re1 {[%clk 0:01:10]}  Bxh3 {[%clk 0:02:26]} 24. e5 {[%clk 0:01:09]}  Nxe5 {[%clk 0:02:21]} 25. Ncxe5 {[%clk 0:01:08]}  Bxe5 {[%clk 0:02:20]} 26. Nxe5 {[%clk 0:01:04]}  Be6 {[%clk 0:02:17]} 27. f4 {[%clk 0:00:59]}  a6 {[%clk 0:02:10]} 28. Be4 {[%clk 0:00:58]}  b5 {[%clk 0:02:06]} 29. g3 {[%clk 0:00:56]}  Bc4 {[%clk 0:02:04]} 30. Qh2 {[%clk 0:00:48]}  h6 {[%clk 0:02:03]} 31. Rd1 {[%clk 0:00:48]}  d3 {[%clk 0:01:55]} 32. Rd2 {[%clk 0:00:46]}  Qb6+ {[%clk 0:01:53]} 33. Qf2 {[%clk 0:00:46]}  Qd6 {[%clk 0:01:48]} 34. Qc5 {[%clk 0:00:46]}  Qxc5+ {[%clk 0:01:42]} 35. bxc5 {[%clk 0:00:45]}  f6 {[%clk 0:01:42]} 36. Nxc4 {[%clk 0:00:43]}  bxc4 {[%clk 0:01:42]} 37. c6 {[%clk 0:00:43]}  Kf7 {[%clk 0:01:41]} 38. c7 {[%clk 0:00:41]}  Rc8 {[%clk 0:01:41]} 39. Bd5+ {[%clk 0:00:42]}  Ke7 {[%clk 0:01:41]} 40. Bxc4 {[%clk 0:00:42]}  Rxc7 {[%clk 0:01:41]} 41. Bxd3 {[%clk 0:00:41]}  Rc3 {[%clk 0:01:42]} 42. Kf2 {[%clk 0:00:38]}  a5 {[%clk 0:01:42]} 43. a4 {[%clk 0:00:38]}  g5 {[%clk 0:01:41]} 44. Bb5 {[%clk 0:00:37]}  gxf4 {[%clk 0:01:39]} 45. gxf4 {[%clk 0:00:38]}  Ke6 {[%clk 0:01:39]} 46. Bd7+ {[%clk 0:00:37]}  Ke7 {[%clk 0:01:39]} 47. f5 {[%clk 0:00:34]}  h5 {[%clk 0:01:38]} 48. Be6 {[%clk 0:00:33]}  Ra3 {[%clk 0:01:34]} 49. Rd7+ {[%clk 0:00:32]}  Ke8 {[%clk 0:01:34]} 50. Rh7 {[%clk 0:00:32]}  Kd8 {[%clk 0:01:26]} 51. Bd7 {[%clk 0:00:29]}  Ra2+ {[%clk 0:01:22]} 52. Kg3 {[%clk 0:00:28]}  Ra1 {[%clk 0:01:18]} 53. Bb5 {[%clk 0:00:25]}  Rg1+ {[%clk 0:01:16]} 54. Kh2 {[%clk 0:00:25]}  Rg5 {[%clk 0:01:16]} 55. Bd7 {[%clk 0:00:25]}  Kc7 {[%clk 0:01:15]} 56. Be6+ {[%clk 0:00:24]}  Kd6 {[%clk 0:01:15]} 57. Ra7 {[%clk 0:00:24]}  Ke5 {[%clk 0:01:11]} 58. Rxa5+ {[%clk 0:00:24]}  Ke4 {[%clk 0:01:11]} 59. Rb5 {[%clk 0:00:23]}  Ke3 {[%clk 0:01:10]} 60. Rb3+ {[%clk 0:00:22]}  Kf2 {[%clk 0:01:10]} 61. Rb2+ {[%clk 0:00:17]}  Kf3 {[%clk 0:01:10]} 62. Ra2 {[%clk 0:00:18]}  Rg4 {[%clk 0:01:08]} 63. a5 {[%clk 0:00:17]}  Rh4+ {[%clk 0:01:09]} 64. Kg1 {[%clk 0:00:17]}  Rg4+ {[%clk 0:01:09]} 65. Kf1 {[%clk 0:00:18]}  Rb4 {[%clk 0:01:08]} 66. Ra1 {[%clk 0:00:16]}  h4 {[%clk 0:01:05]} 67. a6 {[%clk 0:00:16]}  Rb8 {[%clk 0:01:03]} 68. a7 {[%clk 0:00:17]} 1-0


[Site "https://www.chess.com"]

[Event "Titled Tuesday Blitz March 14 Late 2023"]
[White "Duda, Jan-Krzysztof"]
[Black "Khismatullin, Denis"]
[WhiteFideId "1170546"]
[BlackFideId "4142578"]
[WhiteElo "2790"]
[BlackElo "2531"]
[Result "0-1"]
[Round "06"]
[TimeControl "180+2"]
[Date "2023.03.14"]
[WhiteClock "0:00:04"]
[BlackClock "0:00:18"]

1. e4 {[%clk 0:03:00]}  c5 {[%clk 0:00:57]} 2. Nf3 {[%clk 0:02:59]}  e6 {[%clk 0:00:58]} 3. g3 {[%clk 0:02:54]}  Nc6 {[%clk 0:00:57]} 4. Bg2 {[%clk 0:02:53]}  Nf6 {[%clk 0:00:57]} 5. Qe2 {[%clk 0:02:53]}  e5 {[%clk 0:00:58]} 6. O-O {[%clk 0:02:52]}  Be7 {[%clk 0:00:58]} 7. c3 {[%clk 0:02:50]}  O-O {[%clk 0:00:59]} 8. Rd1 {[%clk 0:02:49]}  d5 {[%clk 0:00:59]} 9. d3 {[%clk 0:02:32]}  Re8 {[%clk 0:00:59]} 10. Bg5 {[%clk 0:02:26]}  Be6 {[%clk 0:00:54]} 11. Nbd2 {[%clk 0:02:07]}  d4 {[%clk 0:00:54]} 12. Bxf6 {[%clk 0:02:02]}  Bxf6 {[%clk 0:00:54]} 13. h4 {[%clk 0:01:56]}  Rc8 {[%clk 0:00:54]} 14. Kh2 {[%clk 0:01:55]}  Qd7 {[%clk 0:00:53]} 15. Qf1 {[%clk 0:01:48]}  Red8 {[%clk 0:00:50]} 16. c4 {[%clk 0:01:45]}  h5 {[%clk 0:00:50]} 17. Bh3 {[%clk 0:01:45]}  g6 {[%clk 0:00:48]} 18. Bxe6 {[%clk 0:01:44]}  Qxe6 {[%clk 0:00:49]} 19. Qh3 {[%clk 0:01:43]}  Qxh3+ {[%clk 0:00:49]} 20. Kxh3 {[%clk 0:01:44]}  Bg7 {[%clk 0:00:48]} 21. a3 {[%clk 0:01:41]}  Bh6 {[%clk 0:00:45]} 22. Nb3 {[%clk 0:01:40]}  b6 {[%clk 0:00:45]} 23. Re1 {[%clk 0:01:41]}  f6 {[%clk 0:00:45]} 24. Rab1 {[%clk 0:01:40]}  a5 {[%clk 0:00:45]} 25. Na1 {[%clk 0:01:38]}  Kf7 {[%clk 0:00:45]} 26. Nc2 {[%clk 0:01:36]}  Bf8 {[%clk 0:00:35]} 27. b3 {[%clk 0:01:30]}  Bd6 {[%clk 0:00:35]} 28. Rg1 {[%clk 0:01:08]}  Rh8 {[%clk 0:00:35]} 29. Kg2 {[%clk 0:00:59]}  Rb8 {[%clk 0:00:31]} 30. Rgf1 {[%clk 0:00:58]}  b5 {[%clk 0:00:30]} 31. cxb5 {[%clk 0:00:57]}  Rxb5 {[%clk 0:00:30]} 32. Nd2 {[%clk 0:00:57]}  Rhb8 {[%clk 0:00:29]} 33. a4 {[%clk 0:00:55]}  R5b7 {[%clk 0:00:29]} 34. Kf3 {[%clk 0:00:53]}  Ke6 {[%clk 0:00:29]} 35. Ke2 {[%clk 0:00:48]}  g5 {[%clk 0:00:27]} 36. hxg5 {[%clk 0:00:45]}  fxg5 {[%clk 0:00:28]} 37. Rh1 {[%clk 0:00:45]}  Rh8 {[%clk 0:00:28]} 38. Na3 {[%clk 0:00:46]}  g4 {[%clk 0:00:25]} 39. Nac4 {[%clk 0:00:38]}  Rf7 {[%clk 0:00:22]} 40. Rh2 {[%clk 0:00:36]}  Bc7 {[%clk 0:00:21]} 41. Rbh1 {[%clk 0:00:37]}  Rfh7 {[%clk 0:00:22]} 42. f3 {[%clk 0:00:35]}  gxf3+ {[%clk 0:00:22]} 43. Nxf3 {[%clk 0:00:36]}  Bd8 {[%clk 0:00:23]} 44. g4 {[%clk 0:00:32]}  h4 {[%clk 0:00:22]} 45. g5 {[%clk 0:00:31]}  h3 {[%clk 0:00:22]} 46. g6 {[%clk 0:00:23]}  Rh6 {[%clk 0:00:23]} 47. g7 {[%clk 0:00:21]}  Rg8 {[%clk 0:00:23]} 48. Rxh3 {[%clk 0:00:22]}  Rg6 {[%clk 0:00:23]} 49. Rh7 {[%clk 0:00:18]}  Bf6 {[%clk 0:00:21]} 50. R1h6 {[%clk 0:00:13]}  Rg2+ {[%clk 0:00:21]} 51. Kf1 {[%clk 0:00:12]}  R2xg7 {[%clk 0:00:22]} 52. Rxg7 {[%clk 0:00:10]}  Rxg7 {[%clk 0:00:23]} 53. Nb6 {[%clk 0:00:08]}  Nb4 {[%clk 0:00:20]} 54. Nd5 {[%clk 0:00:08]}  Nxd5 {[%clk 0:00:19]} 55. exd5+ {[%clk 0:00:09]}  Kf5 {[%clk 0:00:20]} 56. Ke2 {[%clk 0:00:09]}  Rg2+ {[%clk 0:00:20]} 57. Kd1 {[%clk 0:00:09]}  Rf2 {[%clk 0:00:20]} 58. Ne1 {[%clk 0:00:02]}  Bg5 {[%clk 0:00:20]} 59. Re6 {[%clk 0:00:01]}  Rd2+ {[%clk 0:00:18]} 60. Kc1 {[%clk 0:00:02]}  Re2+ {[%clk 0:00:19]} 61. Kd1 {[%clk 0:00:02]}  Rd2+ {[%clk 0:00:19]} 62. Kc1 {[%clk 0:00:03]}  Rxd3+ {[%clk 0:00:20]} 63. Kb2 {[%clk 0:00:02]}  Rd2+ {[%clk 0:00:20]} 64. Kc1 {[%clk 0:00:02]}  Re2+ {[%clk 0:00:19]} 65. Kd1 {[%clk 0:00:02]}  Rd2+ {[%clk 0:00:18]} 66. Kc1 {[%clk 0:00:03]}  e4 {[%clk 0:00:19]} 67. Re8 {[%clk 0:00:03]}  d3 {[%clk 0:00:17]} 68. d6 {[%clk 0:00:03]}  Rc2+ {[%clk 0:00:16]} 69. Kb1 {[%clk 0:00:03]}  Rc1+ {[%clk 0:00:17]} 70. Kb2 {[%clk 0:00:03]}  Rxe1 {[%clk 0:00:18]} 71. d7 {[%clk 0:00:04]}  d2 {[%clk 0:00:18]} 72. Rf8+ {[%clk 0:00:04]}  Ke6 {[%clk 0:00:18]} 0-1


[Site "https://www.chess.com"]

[Event "Titled Tuesday Blitz March 14 Late 2023"]
[White "Deac, Bogdan-Daniel"]
[Black "Steinberg, Nitzan"]
[WhiteFideId "1226380"]
[BlackFideId "2801795"]
[WhiteElo "2649"]
[BlackElo "2486"]
[Result "1-0"]
[Round "06"]
[TimeControl "180+2"]
[Date "2023.03.14"]
[WhiteClock "0:00:02"]
[BlackClock "0:00:02"]

1. d4 {[%clk 0:02:59]}  d5 {[%clk 0:02:57]} 2. Nf3 {[%clk 0:02:58]}  Nf6 {[%clk 0:02:58]} 3. Bf4 {[%clk 0:02:59]}  e6 {[%clk 0:02:58]} 4. e3 {[%clk 0:02:59]}  Bd6 {[%clk 0:02:58]} 5. Bg3 {[%clk 0:02:58]}  O-O {[%clk 0:02:59]} 6. c4 {[%clk 0:02:59]}  c5 {[%clk 0:02:49]} 7. dxc5 {[%clk 0:02:58]}  Bxc5 {[%clk 0:02:46]} 8. Nc3 {[%clk 0:02:59]}  Nc6 {[%clk 0:02:41]} 9. a3 {[%clk 0:02:28]}  a6 {[%clk 0:02:37]} 10. Qc2 {[%clk 0:02:10]}  dxc4 {[%clk 0:01:46]} 11. Bxc4 {[%clk 0:02:08]}  b5 {[%clk 0:01:47]} 12. Bd3 {[%clk 0:02:07]}  Be7 {[%clk 0:01:47]} 13. Ne4 {[%clk 0:01:26]}  Qa5+ {[%clk 0:01:47]} 14. Nfd2 {[%clk 0:01:16]}  Nb4 {[%clk 0:01:08]} 15. Nxf6+ {[%clk 0:01:00]}  Bxf6 {[%clk 0:01:09]} 16. Bxh7+ {[%clk 0:00:52]}  Kh8 {[%clk 0:01:09]} 17. Qe4 {[%clk 0:00:32]}  Nd5 {[%clk 0:01:10]} 18. Qb1 {[%clk 0:00:25]}  Rd8 {[%clk 0:01:00]} 19. Bd3 {[%clk 0:00:24]}  Bb7 {[%clk 0:00:58]} 20. Ke2 {[%clk 0:00:24]}  Bxb2 {[%clk 0:00:44]} 21. Qxb2 {[%clk 0:00:13]}  Nc3+ {[%clk 0:00:45]} 22. Kf1 {[%clk 0:00:12]}  Rxd3 {[%clk 0:00:46]} 23. Nb3 {[%clk 0:00:12]}  Rad8 {[%clk 0:00:41]} 24. Re1 {[%clk 0:00:10]}  Rd1 {[%clk 0:00:28]} 25. f3 {[%clk 0:00:09]}  Qa4 {[%clk 0:00:18]} 26. Qxc3 {[%clk 0:00:08]}  R1d3 {[%clk 0:00:18]} 27. Qc7 {[%clk 0:00:07]}  R3d7 {[%clk 0:00:09]} 28. Qc2 {[%clk 0:00:06]}  Rc8 {[%clk 0:00:06]} 29. Qb1 {[%clk 0:00:06]}  Qxa3 {[%clk 0:00:04]} 30. Nd4 {[%clk 0:00:06]}  Bd5 {[%clk 0:00:03]} 31. h4 {[%clk 0:00:05]}  Ba2 {[%clk 0:00:02]} 32. Qa1 {[%clk 0:00:05]}  Bc4+ {[%clk 0:00:02]} 33. Kg1 {[%clk 0:00:05]}  Qd3 {[%clk 0:00:03]} 34. Kh2 {[%clk 0:00:04]}  f6 {[%clk 0:00:03]} 35. Rd1 {[%clk 0:00:03]}  Qg6 {[%clk 0:00:04]} 36. Rhe1 {[%clk 0:00:03]}  e5 {[%clk 0:00:04]} 37. Qxa6 {[%clk 0:00:03]}  Re8 {[%clk 0:00:03]} 38. Nc6 {[%clk 0:00:02]}  Rf7 {[%clk 0:00:02]} 39. Nxe5 {[%clk 0:00:02]} 1-0


[Site "https://www.chess.com"]

[Event "Titled Tuesday Blitz March 14 Late 2023"]
[White "Sarana, Alexey"]
[Black "Yeletsky, Ivan"]
[WhiteFideId "24133795"]
[BlackFideId "24180327"]
[WhiteElo "2714"]
[BlackElo "2414"]
[Result "1-0"]
[Round "06"]
[TimeControl "180+2"]
[Date "2023.03.14"]
[WhiteClock "0:01:38"]
[BlackClock "0:00:48"]

1. c4 {[%clk 0:03:00]}  e5 {[%clk 0:02:59]} 2. Nf3 {[%clk 0:03:00]}  e4 {[%clk 0:02:58]} 3. Nd4 {[%clk 0:03:00]}  Nc6 {[%clk 0:02:59]} 4. e3 {[%clk 0:03:01]}  Nxd4 {[%clk 0:03:00]} 5. exd4 {[%clk 0:03:01]}  Qf6 {[%clk 0:03:00]} 6. Nc3 {[%clk 0:03:01]}  Qxd4 {[%clk 0:03:00]} 7. Be2 {[%clk 0:03:00]}  Nf6 {[%clk 0:02:57]} 8. O-O {[%clk 0:02:58]}  Be7 {[%clk 0:02:46]} 9. d3 {[%clk 0:02:58]}  exd3 {[%clk 0:02:47]} 10. Bxd3 {[%clk 0:02:53]}  Qh4 {[%clk 0:02:42]} 11. Re1 {[%clk 0:02:26]}  Ng4 {[%clk 0:02:40]} 12. h3 {[%clk 0:02:20]}  Qxf2+ {[%clk 0:02:10]} 13. Kh1 {[%clk 0:02:19]}  Nf6 {[%clk 0:01:41]} 14. Be3 {[%clk 0:02:02]}  Qg3 {[%clk 0:01:38]} 15. Qd2 {[%clk 0:02:02]}  Kf8 {[%clk 0:01:01]} 16. Bf2 {[%clk 0:01:48]}  Qd6 {[%clk 0:00:58]} 17. c5 {[%clk 0:01:48]}  Qc6 {[%clk 0:00:55]} 18. Bb5 {[%clk 0:01:48]}  Qe6 {[%clk 0:00:48]} 19. Rxe6 {[%clk 0:01:47]}  dxe6 {[%clk 0:00:48]} 20. Rd1 {[%clk 0:01:40]}  a6 {[%clk 0:00:48]} 21. Ba4 {[%clk 0:01:41]}  b5 {[%clk 0:00:47]} 22. cxb6 {[%clk 0:01:40]}  cxb6 {[%clk 0:00:48]} 23. Bc6 {[%clk 0:01:38]} 1-0


[Site "https://www.chess.com"]

[Event "Titled Tuesday Blitz March 14 Late 2023"]
[White "Ozen, Bahadir"]
[Black "Pranav, V"]
[WhiteFideId "6337058"]
[BlackFideId "25060783"]
[WhiteElo "2503"]
[BlackElo "2500"]
[Result "1-0"]
[Round "06"]
[TimeControl "180+2"]
[Date "2023.03.14"]
[WhiteClock "0:00:02"]
[BlackClock "0:00:04"]

1. d4 {[%clk 0:03:00]}  Nf6 {[%clk 0:02:58]} 2. c4 {[%clk 0:03:01]}  e6 {[%clk 0:02:55]} 3. Nf3 {[%clk 0:03:00]}  b6 {[%clk 0:02:54]} 4. g3 {[%clk 0:02:59]}  Ba6 {[%clk 0:02:53]} 5. Qc2 {[%clk 0:02:54]}  b5 {[%clk 0:02:40]} 6. cxb5 {[%clk 0:02:41]}  Bxb5 {[%clk 0:02:39]} 7. Bg2 {[%clk 0:02:41]}  Nc6 {[%clk 0:02:37]} 8. O-O {[%clk 0:02:39]}  Be7 {[%clk 0:02:36]} 9. Nc3 {[%clk 0:02:37]}  Ba6 {[%clk 0:02:35]} 10. a3 {[%clk 0:02:32]}  O-O {[%clk 0:02:27]} 11. Bf4 {[%clk 0:02:26]}  Rb8 {[%clk 0:02:17]} 12. b4 {[%clk 0:02:11]}  Bc4 {[%clk 0:02:07]} 13. Rfd1 {[%clk 0:01:51]}  a5 {[%clk 0:01:54]} 14. b5 {[%clk 0:01:51]}  Bxb5 {[%clk 0:01:49]} 15. Nxb5 {[%clk 0:01:51]}  Rxb5 {[%clk 0:01:50]} 16. e4 {[%clk 0:01:41]}  Nh5 {[%clk 0:01:35]} 17. Be3 {[%clk 0:01:39]}  Qb8 {[%clk 0:01:27]} 18. d5 {[%clk 0:01:32]}  Nd8 {[%clk 0:01:21]} 19. e5 {[%clk 0:01:17]}  f5 {[%clk 0:01:03]} 20. dxe6 {[%clk 0:01:12]}  dxe6 {[%clk 0:00:54]} 21. Qc4 {[%clk 0:01:03]}  Re8 {[%clk 0:00:36]} 22. Bf1 {[%clk 0:00:40]}  c6 {[%clk 0:00:34]} 23. a4 {[%clk 0:00:32]}  Rd5 {[%clk 0:00:33]} 24. Rab1 {[%clk 0:00:31]}  Bb4 {[%clk 0:00:28]} 25. Bg5 {[%clk 0:00:26]}  h6 {[%clk 0:00:23]} 26. Be3 {[%clk 0:00:21]}  Rf8 {[%clk 0:00:19]} 27. Be2 {[%clk 0:00:18]}  Qc7 {[%clk 0:00:13]} 28. Kg2 {[%clk 0:00:17]}  f4 {[%clk 0:00:12]} 29. Bd4 {[%clk 0:00:17]}  fxg3 {[%clk 0:00:12]} 30. hxg3 {[%clk 0:00:18]}  Qf7 {[%clk 0:00:12]} 31. Bb2 {[%clk 0:00:17]}  Qg6 {[%clk 0:00:12]} 32. Kf1 {[%clk 0:00:17]}  Nxg3+ {[%clk 0:00:12]} 33. fxg3 {[%clk 0:00:17]}  Qxg3 {[%clk 0:00:13]} 34. Qe4 {[%clk 0:00:15]}  Bc5 {[%clk 0:00:13]} 35. Bd4 {[%clk 0:00:15]}  Rf4 {[%clk 0:00:12]} 36. Qxf4 {[%clk 0:00:11]}  Qxf4 {[%clk 0:00:12]} 37. Bxc5 {[%clk 0:00:11]}  Nf7 {[%clk 0:00:09]} 38. Rxd5 {[%clk 0:00:08]}  cxd5 {[%clk 0:00:10]} 39. Rb8+ {[%clk 0:00:09]}  Kh7 {[%clk 0:00:11]} 40. Rf8 {[%clk 0:00:03]}  g5 {[%clk 0:00:08]} 41. Be7 {[%clk 0:00:03]}  g4 {[%clk 0:00:04]} 42. Bf6 {[%clk 0:00:02]}  gxf3 {[%clk 0:00:04]} 43. Bd3+ {[%clk 0:00:02]} 1-0


[Site "https://www.chess.com"]

[Event "Titled Tuesday Blitz March 14 Late 2023"]
[White "Makhnev, Denis"]
[Black "Averjanov, Alexey"]
[WhiteFideId "13707647"]
[BlackFideId "14109867"]
[WhiteElo "2525"]
[BlackElo "2720"]
[Result "1/2-1/2"]
[Round "06"]
[TimeControl "180+2"]
[Date "2023.03.14"]
[WhiteClock "0:00:05"]
[BlackClock "0:00:04"]

1. d4 {[%clk 0:03:00]}  d5 {[%clk 0:02:59]} 2. c4 {[%clk 0:03:01]}  dxc4 {[%clk 0:02:58]} 3. Nf3 {[%clk 0:03:01]}  Nf6 {[%clk 0:02:58]} 4. e3 {[%clk 0:03:01]}  e6 {[%clk 0:02:58]} 5. Bxc4 {[%clk 0:03:02]}  a6 {[%clk 0:02:58]} 6. O-O {[%clk 0:03:02]}  b5 {[%clk 0:02:58]} 7. Be2 {[%clk 0:03:02]}  Bb7 {[%clk 0:02:58]} 8. Ne5 {[%clk 0:02:46]}  c5 {[%clk 0:02:56]} 9. Bf3 {[%clk 0:02:46]}  Qb6 {[%clk 0:02:54]} 10. a4 {[%clk 0:02:42]}  Nc6 {[%clk 0:02:36]} 11. axb5 {[%clk 0:02:16]}  axb5 {[%clk 0:02:36]} 12. Rxa8+ {[%clk 0:02:17]}  Bxa8 {[%clk 0:02:36]} 13. Nc3 {[%clk 0:02:18]}  Be7 {[%clk 0:02:04]} 14. Qb3 {[%clk 0:02:12]}  cxd4 {[%clk 0:01:43]} 15. Nxc6 {[%clk 0:00:31]}  Bxc6 {[%clk 0:01:33]} 16. Bxc6+ {[%clk 0:00:17]}  Qxc6 {[%clk 0:01:34]} 17. exd4 {[%clk 0:00:17]}  b4 {[%clk 0:01:27]} 18. Ne2 {[%clk 0:00:16]}  O-O {[%clk 0:01:26]} 19. Be3 {[%clk 0:00:16]}  Nd5 {[%clk 0:01:24]} 20. Rc1 {[%clk 0:00:16]}  Qa6 {[%clk 0:01:20]} 21. Nf4 {[%clk 0:00:16]}  Rd8 {[%clk 0:01:08]} 22. Nxd5 {[%clk 0:00:16]}  Rxd5 {[%clk 0:01:08]} 23. Qc4 {[%clk 0:00:16]}  Qb6 {[%clk 0:00:41]} 24. Qc7 {[%clk 0:00:06]}  Qxc7 {[%clk 0:00:28]} 25. Rxc7 {[%clk 0:00:07]}  Bf8 {[%clk 0:00:25]} 26. Rc8 {[%clk 0:00:06]}  f6 {[%clk 0:00:25]} 27. Kf1 {[%clk 0:00:07]}  Kf7 {[%clk 0:00:25]} 28. Ke2 {[%clk 0:00:07]}  g5 {[%clk 0:00:23]} 29. g4 {[%clk 0:00:06]}  Rd7 {[%clk 0:00:22]} 30. Kd3 {[%clk 0:00:05]}  Bd6 {[%clk 0:00:21]} 31. h3 {[%clk 0:00:05]}  Rb7 {[%clk 0:00:15]} 32. Kc4 {[%clk 0:00:03]}  Be7 {[%clk 0:00:12]} 33. Rc6 {[%clk 0:00:03]}  h6 {[%clk 0:00:11]} 34. b3 {[%clk 0:00:03]}  Rd7 {[%clk 0:00:10]} 35. Rb6 {[%clk 0:00:02]}  Rc7+ {[%clk 0:00:10]} 36. Kb5 {[%clk 0:00:03]}  Rc3 {[%clk 0:00:09]} 37. Ka4 {[%clk 0:00:03]}  Rc2 {[%clk 0:00:08]} 38. Rb7 {[%clk 0:00:04]}  Ra2+ {[%clk 0:00:08]} 39. Kb5 {[%clk 0:00:04]}  Rc2 {[%clk 0:00:06]} 40. Ra7 {[%clk 0:00:02]}  Ke8 {[%clk 0:00:06]} 41. Ra8+ {[%clk 0:00:02]}  Kf7 {[%clk 0:00:06]} 42. Rh8 {[%clk 0:00:03]}  Kg7 {[%clk 0:00:06]} 43. Re8 {[%clk 0:00:03]}  Kf7 {[%clk 0:00:05]} 44. Rb8 {[%clk 0:00:04]}  Rc3 {[%clk 0:00:04]} 45. Ka4 {[%clk 0:00:04]}  Rc2 {[%clk 0:00:04]} 46. Rb7 {[%clk 0:00:04]}  Ke8 {[%clk 0:00:04]} 47. Rb6 {[%clk 0:00:04]}  Kf7 {[%clk 0:00:04]} 48. Kb5 {[%clk 0:00:04]}  Rc3 {[%clk 0:00:04]} 49. Ka4 {[%clk 0:00:05]}  Rc2 {[%clk 0:00:04]} 1/2-1/2


[Site "https://www.chess.com"]